fUST/lending_fUST_20240824
["ID","MTS","AMOUNT","RATE_DAILY","PERIOD"]
[335769692,1724483462119,-500.0,0.00013972,2]
[335769693,1724483462130,-204.026499,0.00013972,2]
[335769694,1724483462139,-204.026499,0.00013972,2]
[335769695,1724483462148,-204.026499,0.00013972,2]
[335769696,1724483462158,-718.41,0.00013972,2]
[335769697,1724483462167,-1119.008387,0.00013972,2]
[335769698,1724483462177,-1008.99,0.00013972,2]
[335769699,1724483462187,-1119.008387,0.00013972,2]
[335769700,1724483462196,-1119.008387,0.00013972,2]
[335769701,1724483462206,-500.0,0.00013972,2]
[335769702,1724483462216,-718.74,0.00013972,2]
[335769703,1724483462225,-2519.0,0.00013972,2]
[335769704,1724483462235,-1119.008387,0.00013972,2]
[335769705,1724483462244,-4869.48,0.00013972,2]
[335769706,1724483462254,-1119.008387,0.00013972,2]
[335769707,1724483462264,-1421.72,0.00013972,2]
[335769708,1724483462273,-1119.008387,0.00013972,2]
[335769709,1724483462283,-500.0,0.00013972,2]
[335769710,1724483462292,-500.0,0.00013972,2]
[335769711,1724483462302,-1306.95,0.00013972,2]
[335769712,1724483462312,-152.236117,0.00013972,2]
[335769713,1724483462321,-1111.16,0.00013972,2]
[335769714,1724483462330,-1348.78,0.00013972,2]
[335769715,1724483462340,-516.38483017,0.00013972,2]
[335769716,1724483462350,-500.0,0.00013972,2]
[335769717,1724483462360,-151.0,0.00013972,2]
[335769718,1724483462369,-151.0,0.00013972,2]
[335769719,1724483462378,-151.0,0.00013972,2]
[335769720,1724483462387,-151.0,0.00013972,2]
[335769721,1724483462397,-151.0,0.00013972,2]
[335769722,1724483462407,-934.92,0.00013972,2]
[335769723,1724483462416,-14688.01,0.00013972,2]
[335769724,1724483462426,-206.256484,0.00013972,2]
[335769725,1724483462435,-577.65,0.00013972,2]
[335769726,1724483462444,-500.0,0.00013972,2]
[335769727,1724483462453,-636.55,0.00013972,2]
[335769728,1724483462463,-500.0,0.00013972,2]
[335769729,1724483462473,-500.0,0.00013972,2]
[335769730,1724483462484,-500.0,0.00013972,2]
[335769731,1724483462496,-1290.36,0.00013972,2]
[335769732,1724483462506,-1716.46,0.00013972,2]
[335769733,1724483462516,-561.87,0.00013972,2]
[335769734,1724483462526,-500.0,0.00013972,2]
[335769735,1724483462536,-2293.24,0.00013972,2]
[335769736,1724483462545,-3165.38,0.00013972,2]
[335769737,1724483462555,-690.27,0.00013972,2]
[335769738,1724483462564,-674.58,0.00013972,2]
[335769739,1724483462574,-500.0,0.00013972,2]
[335769740,1724483462583,-500.0,0.00013972,2]
[335769741,1724483462593,-500.0,0.00013972,2]
[335769742,1724483462602,-3509.98,0.00013972,2]
[335769743,1724483462611,-734.82,0.00013972,2]
[335769744,1724483462621,-500.0,0.00013972,2]
[335769745,1724483462630,-2451.78,0.00013972,2]
[335769746,1724483462638,-500.0,0.00013972,2]
[335769747,1724483462647,-763.37,0.00013972,2]
[335769748,1724483462657,-500.0,0.00013972,2]
[335769749,1724483462667,-1094.72,0.00013972,2]
[335769750,1724483462676,-1696.02,0.00013972,2]
[335769751,1724483462685,-500.0,0.00013972,2]
[335769752,1724483462694,-950.259632,0.00013972,2]
[335769753,1724483462703,-950.259632,0.00013972,2]
[335769754,1724483462712,-1059.88,0.00013972,2]
[335769755,1724483462721,-950.259632,0.00013972,2]
[335769756,1724483462730,-2454.6,0.00013972,2]
[335769757,1724483462739,-7181.1,0.00013972,2]
[335769758,1724483462748,-500.0,0.00013972,2]
[335769759,1724483462759,-500.0,0.00013972,2]
[335769760,1724483462768,-950.259632,0.00013972,2]
[335769761,1724483462777,-950.259632,0.00013972,2]
[335769762,1724483462787,-950.259632,0.00013972,2]
[335769763,1724483462796,-1394.76,0.00013972,2]
[335769764,1724483462805,-500.0,0.00013972,2]
[335769765,1724483462814,-738.25,0.00013972,2]
[335769766,1724483462823,-10587.27,0.00013972,2]
[335769767,1724483462833,-622.11,0.00013972,2]
[335769768,1724483462848,-500.0,0.00013972,2]
[335769769,1724483462858,-1865.14,0.00013972,2]
[335769770,1724483462867,-500.0,0.00013972,2]
[335769771,1724483462876,-2602.81,0.00013972,2]
[335769772,1724483462887,-2163.12,0.00013972,2]
[335769773,1724483462898,-961.84,0.00013972,2]
[335769774,1724483462909,-500.0,0.00013972,2]
[335769775,1724483462923,-500.0,0.00013972,2]
[335769776,1724483462934,-500.0,0.00013972,2]
[335769777,1724483462945,-500.0,0.00013972,2]
[335769778,1724483462957,-517.5,0.00013972,2]
[335769779,1724483462967,-500.0,0.00013972,2]
[335769780,1724483462977,-500.0,0.00013972,2]
[335769781,1724483462987,-4611.35,0.00013972,2]
[335769782,1724483462996,-2006.77,0.00013972,2]
[335769783,1724483463005,-500.0,0.00013972,2]
[335769784,1724483463015,-1520.92,0.00013972,2]
[335769785,1724483463025,-1782.14,0.00013972,2]
[335769786,1724483463035,-500.0,0.00013972,2]
[335769787,1724483463044,-572.82,0.00013972,2]
[335769788,1724483463054,-500.0,0.00013972,2]
[335769789,1724483463064,-500.0,0.00013972,2]
[335769790,1724483463073,-202.319256,0.00013972,2]
[335769791,1724483463082,-516.71,0.00013972,2]
[335769792,1724483463092,-202.319256,0.00013972,2]
[335769793,1724483463101,-202.319256,0.00013972,2]
[335769794,1724483463111,-3421.37,0.00013972,2]
[335769795,1724483463120,-500.0,0.00013972,2]
[335769796,1724483463131,-3439.97,0.00013972,2]
[335769797,1724483463141,-1362.0,0.00013972,2]
[335769798,1724483463151,-202.319256,0.00013972,2]
[335769799,1724483463161,-500.30061195,0.00013973,2]
[335769800,1724483463171,-200.35146949,0.00013973,2]
[335769801,1724483463180,-500.0,0.00013973,2]
[335769802,1724483463191,-154.80026742,0.00013973,2]
[335769803,1724483463200,-504.78112766,0.00013973,2]
[335769804,1724483463210,-500.0,0.00013973,2]
[335769805,1724483463219,-200.32057347,0.00013973,2]
[335769806,1724483463230,-2326.12,0.00013999,2]
[335769807,1724483463240,-2326.12,0.00013999,2]
[335769808,1724483463249,-2326.12,0.00013999,2]
[335769809,1724483463260,-2326.12,0.00013999,2]
[335769810,1724483463269,-2326.13,0.00013999,2]
[335769811,1724483463279,-597.33206656,0.00014,4]
[335769812,1724483463289,-23175.06667917,0.00014,2]
[335769813,1724483463298,-154.71377951,0.00014,2]
[335769814,1724483463307,-151.0,0.00014,2]
[335769815,1724483463316,-151.0,0.00014,2]
[335769816,1724483463326,-151.0,0.00014,2]
[335769817,1724483463336,-268.195579,0.00014,2]
[335769818,1724483463345,-268.195579,0.00014,2]
[335769819,1724483463354,-3284.094567,0.00014,2]
[335769820,1724483463364,-3284.094567,0.00014,2]
[335769821,1724483463373,-151.0,0.00014,2]
[335769822,1724483463383,-1040.786388,0.00014,2]
[335769823,1724483463392,-1040.786388,0.00014,2]
[335769824,1724483463401,-730.0554944,0.00014146,2]
[335769825,1724483463410,-2314.47096629,0.00014146,2]
[335769826,1724483463419,-243.2101,0.00014175,2]
[335769827,1724483463428,-1000.0,0.00014221,2]
[335769828,1724483463438,-1000.0,0.00014221,2]
[335769829,1724483463447,-449.97377135,0.00014221,2]
[335769830,1724483463457,-1000.0,0.00014221,2]
[335769831,1724483463466,-358.92825759,0.00014245,2]
[335769832,1724483463475,-10640.40078469,0.00014245,2]
[335769833,1724483463611,-304.344614,0.00014245,2]
[335769834,1724483463621,-304.344614,0.00014245,2]
[335769835,1724483463630,-151.0,0.00014245,2]
[335769836,1724483463639,-1947.13996749,0.00014245,3]
[335769837,1724483463649,-151.0,0.00014246,2]
[335769838,1724483463658,-151.0,0.00014246,2]
[335769839,1724483463668,-247.674971,0.00014246,2]
[335769840,1724483463677,-618.636103,0.00014246,2]
[335769841,1724483463687,-618.636103,0.00014246,2]
[335769842,1724483463697,-618.636103,0.00014246,2]
[335769843,1724483463706,-618.636103,0.00014246,2]
[335769844,1724483463715,-618.636103,0.00014246,2]
[335769845,1724483463725,-618.636103,0.00014246,2]
[335769846,1724483463734,-304.344614,0.00014246,2]
[335769847,1724483463743,-304.344614,0.00014246,2]
[335769848,1724483463753,-304.344614,0.00014246,2]
[335769849,1724483463762,-304.344614,0.00014246,2]
[335769850,1724483463772,-151.0,0.00014246,2]
[335769851,1724483463782,-151.520146,0.00014246,2]
[335769852,1724483463792,-151.0,0.00014246,2]
[335769853,1724483463802,-151.0,0.00014246,2]
[335769854,1724483463812,-151.0,0.00014246,2]
[335769855,1724483463822,-151.0,0.00014246,2]
[335769856,1724483463831,-281.26072806,0.00014246,2]
[335769857,1724483463844,-299.021246,0.00014246,2]
[335769858,1724483463853,-299.021246,0.00014246,2]
[335769859,1724483463865,-299.021246,0.00014246,2]
[335769860,1724483463875,-299.021246,0.00014246,2]
[335769861,1724483463885,-299.021246,0.00014246,2]
[335769862,1724483463895,-299.021246,0.00014246,2]
[335769863,1724483463905,-271.219621,0.00014246,2]
[335769864,1724483463914,-151.0,0.00014246,2]
[335769865,1724483463927,-151.0,0.00014246,2]
[335769866,1724483463938,-151.0,0.00014246,2]
[335769867,1724483463948,-151.0,0.00014246,2]
[335769868,1724483463959,-500.0,0.00014246,2]
[335769869,1724483463969,-151.0,0.00014246,2]
[335769870,1724483463978,-502.72028306,0.00014246,2]
[335769871,1724483463987,-151.0,0.00014246,2]
[335769872,1724483463996,-1074.41,0.00014246,2]
[335769873,1724483464006,-500.0,0.00014246,2]
[335769874,1724483464016,-678.32,0.00014246,2]
[335769875,1724483464026,-500.0,0.00014246,2]
[335769876,1724483464035,-695.83,0.00014246,2]
[335769877,1724483464044,-151.0,0.00014246,2]
[335769878,1724483464053,-1134.43,0.00014246,2]
[335769879,1724483464062,-500.0,0.00014246,2]
[335769880,1724483464072,-500.0,0.00014246,2]
[335769881,1724483464082,-500.0,0.00014246,2]
[335769882,1724483464092,-808.88,0.00014246,2]
[335769883,1724483464101,-575.98,0.00014246,2]
[335769884,1724483464111,-771.07,0.00014246,2]
[335769885,1724483464121,-789.14,0.00014246,2]
[335769886,1724483464132,-830.35,0.00014246,2]
[335769887,1724483464142,-500.0,0.00014246,2]
[335769888,1724483464152,-580.25,0.00014246,2]
[335769889,1724483464161,-500.0,0.00014246,2]
[335769890,1724483464171,-543.81,0.00014246,2]
[335769891,1724483464180,-500.0,0.00014246,2]
[335769892,1724483464190,-500.0,0.00014246,2]
[335769893,1724483464200,-500.0,0.00014246,2]
[335769894,1724483464209,-500.0,0.00014246,2]
[335769895,1724483464219,-500.0,0.00014246,2]
[335769896,1724483464228,-500.0,0.00014246,2]
[335769897,1724483464238,-500.0,0.00014246,2]
[335769898,1724483464247,-500.0,0.00014246,2]
[335769899,1724483464256,-2057.652411,0.00014246,2]
[335769900,1724483464265,-2057.652411,0.00014246,2]
[335769901,1724483464275,-2057.652411,0.00014246,2]
[335769902,1724483464284,-500.0,0.00014246,2]
[335769903,1724483464293,-151.0,0.00014246,2]
[335769904,1724483464304,-2057.652411,0.00014246,2]
[335769905,1724483464313,-557.48915193,0.00014246,2]
[335769906,1724483464323,-2057.652411,0.00014246,2]
[335769907,1724483464333,-2057.652411,0.00014246,2]
[335769908,1724483464342,-151.0,0.00014246,2]
[335769909,1724483464351,-500.0,0.00014246,2]
[335769910,1724483464365,-286.58702457,0.00014246,2]
[335769911,1724483464375,-828.900831,0.00014246,2]
[335769912,1724483464385,-563.37,0.00014246,2]
[335769913,1724483464394,-151.0,0.00014246,2]
[335769914,1724483464404,-151.0,0.00014246,2]
[335769915,1724483464413,-151.0,0.00014246,2]
[335769916,1724483464423,-828.900831,0.00014246,2]
[335769917,1724483464433,-638.51,0.00014246,2]
[335769918,1724483464442,-151.0,0.00014246,2]
[335769919,1724483464452,-151.0,0.00014246,2]
[335769920,1724483464462,-151.0,0.00014246,2]
[335769921,1724483464472,-617.09,0.00014246,2]
[335769922,1724483464481,-261.313277,0.00014246,2]
[335769923,1724483464491,-844.96,0.00014246,2]
[335769924,1724483464500,-261.313277,0.00014246,2]
[335769925,1724483464509,-500.0,0.00014246,2]
[335769926,1724483464518,-500.0,0.00014246,2]
[335769927,1724483464527,-500.0,0.00014246,2]
[335769928,1724483464537,-398.55180847,0.00014246,2]
[335769929,1724483464546,-500.0,0.00014246,2]
[335769930,1724483464556,-518.14,0.00014246,2]
[335769931,1724483464565,-607.28,0.00014246,2]
[335769932,1724483464574,-500.0,0.00014246,2]
[335769933,1724483464583,-500.0,0.00014246,2]
[335769934,1724483464592,-500.0,0.00014246,2]
[335769935,1724483464601,-500.0,0.00014246,2]
[335769936,1724483464611,-500.0,0.00014246,2]
[335769937,1724483464620,-500.0,0.00014246,2]
[335769938,1724483464630,-2446.63,0.00014246,2]
[335769939,1724483464639,-500.0,0.00014246,2]
[335769940,1724483464648,-500.0,0.00014246,2]
[335769941,1724483464658,-669.47,0.00014246,2]
[335769942,1724483464667,-514.956958,0.00014246,2]
[335769943,1724483464677,-514.956958,0.00014246,2]
[335769944,1724483464686,-764.18,0.00014246,2]
[335769945,1724483464695,-500.0,0.00014246,2]
[335769946,1724483464705,-500.0,0.00014246,2]
[335769947,1724483464715,-500.0,0.00014246,2]
[335769948,1724483464724,-500.0,0.00014246,2]
[335769949,1724483464733,-500.0,0.00014246,2]
[335769950,1724483464743,-500.0,0.00014246,2]
[335769951,1724483464752,-500.0,0.00014246,2]
[335769952,1724483464761,-500.0,0.00014246,2]
[335769953,1724483464770,-500.0,0.00014246,2]
[335769954,1724483464780,-756.43,0.00014246,2]
[335769955,1724483464789,-500.0,0.00014246,2]
[335769956,1724483464799,-500.0,0.00014246,2]
[335769957,1724483464808,-500.0,0.00014246,2]
[335769958,1724483464817,-500.0,0.00014246,2]
[335769959,1724483464826,-500.0,0.00014246,2]
[335769960,1724483464835,-226.45830538,0.00014246,2]
[335769961,1724483464850,-500.0,0.00014246,2]
[335769962,1724483464859,-500.0,0.00014246,2]
[335769963,1724483464868,-203.559079,0.00014246,2]
[335769964,1724483464878,-878.8,0.00014246,2]
[335769965,1724483464888,-203.559079,0.00014246,2]
[335769966,1724483464898,-203.559079,0.00014246,2]
[335769967,1724483464907,-500.0,0.00014246,2]
[335769968,1724483464918,-500.0,0.00014246,2]
[335769969,1724483464927,-500.0,0.00014246,2]
[335769970,1724483464936,-500.0,0.00014246,2]
[335769971,1724483464945,-500.0,0.00014246,2]
[335769972,1724483464954,-500.0,0.00014246,2]
[335769973,1724483464963,-500.0,0.00014246,2]
[335769974,1724483464972,-500.0,0.00014246,2]
[335769975,1724483464982,-1383.25694,0.00014246,2]
[335769976,1724483464991,-1383.25694,0.00014246,2]
[335769977,1724483465002,-1383.25694,0.00014246,2]
[335769978,1724483465011,-3131.53,0.00014246,2]
[335769979,1724483465020,-1383.25694,0.00014246,2]
[335769980,1724483465029,-1383.25694,0.00014246,2]
[335769981,1724483465038,-1383.25694,0.00014246,2]
[335769982,1724483465048,-500.0,0.00014246,2]
[335769983,1724483465057,-500.0,0.00014246,2]
[335769984,1724483465066,-220.157913,0.00014246,2]
[335769985,1724483465075,-220.157913,0.00014246,2]
[335769986,1724483465085,-220.157913,0.00014246,2]
[335769987,1724483465094,-220.157913,0.00014246,2]
[335769988,1724483465104,-220.157913,0.00014246,2]
[335769989,1724483465114,-220.157913,0.00014246,2]
[335769990,1724483465123,-500.0,0.00014246,2]
[335769991,1724483465133,-654.88,0.00014246,2]
[335769992,1724483465142,-681.7,0.00014246,2]
[335769993,1724483465152,-225.714086,0.00014246,2]
[335769994,1724483465162,-225.714086,0.00014246,2]
[335769995,1724483465171,-225.714086,0.00014246,2]
[335769996,1724483465180,-500.0,0.00014246,2]
[335769997,1724483465189,-225.714086,0.00014246,2]
[335769998,1724483465199,-225.714086,0.00014246,2]
[335769999,1724483465209,-500.0,0.00014246,2]
[335770000,1724483465218,-225.714086,0.00014246,2]
[335770001,1724483465228,-626.08,0.00014246,2]
[335770002,1724483465238,-151.0,0.00014246,2]
[335770003,1724483465247,-151.0,0.00014246,2]
[335770004,1724483465257,-151.0,0.00014246,2]
[335770005,1724483465266,-861.97,0.00014246,2]
[335770006,1724483465276,-500.0,0.00014246,2]
[335770007,1724483465286,-773.3,0.00014246,2]
[335770008,1724483465295,-500.0,0.00014246,2]
[335770009,1724483465304,-151.0,0.00014246,2]
[335770010,1724483465313,-234.144972,0.00014246,2]
[335770011,1724483465322,-500.0,0.00014246,2]
[335770012,1724483465332,-500.0,0.00014246,2]
[335770013,1724483465341,-500.0,0.00014246,2]
[335770014,1724483465350,-500.0,0.00014246,2]
[335770015,1724483465361,-500.0,0.00014246,2]
[335770016,1724483465370,-544.01843689,0.00014246,2]
[335770017,1724483465380,-500.0,0.00014246,2]
[335770018,1724483465390,-504.75790496,0.00014246,2]
[335770019,1724483465399,-500.0,0.00014246,2]
[335770020,1724483465408,-500.0,0.00014246,2]
[335770021,1724483465419,-500.0,0.00014246,2]
[335770022,1724483465430,-500.0,0.00014246,2]
[335770023,1724483465440,-500.0,0.00014246,2]
[335770024,1724483465452,-500.0,0.00014246,2]
[335770025,1724483465464,-500.0,0.00014246,2]
[335770026,1724483465474,-857.73,0.00014246,2]
[335770027,1724483465483,-151.0,0.00014246,2]
[335770028,1724483465493,-151.0,0.00014246,2]
[335770029,1724483465502,-500.0,0.00014246,2]
[335770030,1724483465511,-500.0,0.00014246,2]
[335770031,1724483465521,-500.0,0.00014246,2]
[335770032,1724483465530,-1135.22,0.00014246,2]
[335770033,1724483465539,-720.16,0.00014246,2]
[335770034,1724483465549,-500.0,0.00014246,2]
[335770035,1724483465558,-679.823101,0.00014246,2]
[335770036,1724483465567,-679.823101,0.00014246,2]
[335770037,1724483465695,-679.823101,0.00014246,2]
[335770038,1724483465704,-930.78,0.00014246,2]
[335770039,1724483465713,-576.51,0.00014246,2]
[335770040,1724483465723,-679.823101,0.00014246,2]
[335770041,1724483465733,-679.823101,0.00014246,2]
[335770042,1724483465743,-679.823101,0.00014246,2]
[335770043,1724483465752,-388.68899463,0.00014246,2]
[335770044,1724483465761,-605.36,0.00014246,2]
[335770045,1724483465770,-500.0,0.00014246,2]
[335770046,1724483465780,-965.14,0.00014246,2]
[335770047,1724483465789,-500.0,0.00014246,2]
[335770048,1724483465799,-500.0,0.00014246,2]
[335770049,1724483465808,-1040.24,0.00014246,2]
[335770050,1724483465817,-944.03,0.00014246,2]
[335770051,1724483465826,-151.0,0.00014246,2]
[335770052,1724483465835,-745.79,0.00014246,2]
[335770053,1724483465849,-151.0,0.00014246,2]
[335770054,1724483465863,-500.0,0.00014246,2]
[335770055,1724483465873,-500.0,0.00014246,2]
[335770056,1724483465883,-693.0,0.00014246,2]
[335770057,1724483465892,-151.0,0.00014246,2]
[335770058,1724483465901,-500.0,0.00014246,2]
[335770059,1724483465911,-858.32,0.00014246,2]
[335770060,1724483465922,-682.65,0.00014246,2]
[335770061,1724483465931,-500.0,0.00014246,2]
[335770062,1724483465941,-2032.72,0.00014246,2]
[335770063,1724483465950,-500.0,0.00014246,2]
[335770064,1724483465959,-500.0,0.00014246,2]
[335770065,1724483465968,-500.0,0.00014246,2]
[335770066,1724483465978,-500.0,0.00014246,2]
[335770067,1724483465987,-3141.46,0.00014246,2]
[335770068,1724483465997,-500.0,0.00014246,2]
[335770069,1724483466006,-500.0,0.00014246,2]
[335770070,1724483466015,-500.0,0.00014246,2]
[335770071,1724483466024,-500.0,0.00014246,2]
[335770072,1724483466033,-150.0,0.00014246,2]
[335770073,1724483466043,-500.0,0.00014246,2]
[335770074,1724483466052,-500.0,0.00014246,2]
[335770075,1724483466062,-500.0,0.00014246,2]
[335770076,1724483466071,-2363.95,0.00014246,2]
[335770077,1724483466081,-500.0,0.00014246,2]
[335770078,1724483466091,-591.70678554,0.00014246,2]
[335770079,1724483466100,-2884.82,0.00014246,2]
[335770080,1724483466113,-500.0,0.00014246,2]
[335770081,1724483466123,-500.0,0.00014246,2]
[335770082,1724483466133,-500.0,0.00014246,2]
[335770083,1724483466143,-772.25,0.00014246,2]
[335770084,1724483466153,-719.97,0.00014246,2]
[335770085,1724483466163,-772.08,0.00014246,2]
[335770086,1724483466173,-500.0,0.00014246,2]
[335770087,1724483466183,-984.75,0.00014246,2]
[335770088,1724483466192,-110.95824723,0.00014246,2]
[335770089,1724483466232,-855.53175277,0.00014246,2]
[335770090,1724483466243,-500.0,0.00014246,2]
[335770091,1724483466255,-500.0,0.00014246,2]
[335770092,1724483466266,-794.74,0.00014246,2]
[335770093,1724483466278,-719.89661622,0.00014246,2]
[335770094,1724483467043,-173.505299,0.000136,2]
[335770095,1724483467052,-500.0,0.00013698,2]
[335770096,1724483467061,-500.0,0.00013698,2]
[335770097,1724483467071,-500.0,0.00013698,2]
[335770098,1724483467080,-202.319256,0.00013972,2]
[335770099,1724483467089,-202.319256,0.00013972,2]
[335770100,1724483467098,-500.0,0.00013972,2]
[335770101,1724483467107,-1629.42338378,0.00014246,2]
[335770102,1724483467117,-500.0,0.00014246,2]
[335770103,1724483467126,-500.0,0.00014246,2]
[335770104,1724483467138,-560.46,0.00014246,2]
[335770105,1724483467147,-500.0,0.00014246,2]
[335770106,1724483467156,-589.79,0.00014246,2]
[335770107,1724483467166,-500.0,0.00014246,2]
[335770108,1724483467175,-602.08,0.00014246,2]
[335770109,1724483467184,-500.0,0.00014246,2]
[335770110,1724483467196,-900.28,0.00014246,2]
[335770111,1724483467205,-1303.430363,0.00014246,2]
[335770112,1724483467214,-1303.430363,0.00014246,2]
[335770113,1724483467224,-1303.430363,0.00014246,2]
[335770114,1724483467233,-596.75,0.00014246,2]
[335770115,1724483467242,-500.0,0.00014246,2]
[335770116,1724483467251,-500.0,0.00014246,2]
[335770117,1724483467261,-2195.88,0.00014246,2]
[335770118,1724483467270,-500.0,0.00014246,2]
[335770119,1724483467279,-1303.430363,0.00014246,2]
[335770120,1724483467288,-666.0,0.00014246,2]
[335770121,1724483467297,-1303.430363,0.00014246,2]
[335770122,1724483467306,-1303.430363,0.00014246,2]
[335770123,1724483467315,-778.89,0.00014246,2]
[335770124,1724483467325,-381.29143975,0.00014246,2]
[335770125,1724483467334,-500.0,0.00014246,2]
[335770126,1724483467344,-1060.76,0.00014246,2]
[335770127,1724483467353,-2016.11,0.00014246,2]
[335770128,1724483467362,-500.0,0.00014246,2]
[335770129,1724483467371,-968.66,0.00014246,2]
[335770130,1724483467381,-500.0,0.00014246,2]
[335770131,1724483467390,-500.0,0.00014246,2]
[335770132,1724483467399,-503.11541258,0.00014246,2]
[335770133,1724483467410,-532.75,0.00014246,2]
[335770134,1724483467419,-853.32,0.00014246,2]
[335770135,1724483467429,-805.95,0.00014246,2]
[335770136,1724483467438,-967.87,0.00014246,2]
[335770137,1724483467447,-500.0,0.00014246,2]
[335770138,1724483467456,-500.0,0.00014246,2]
[335770139,1724483467466,-500.0,0.00014246,2]
[335770140,1724483467474,-500.0,0.00014246,2]
[335770141,1724483467484,-500.0,0.00014246,2]
[335770142,1724483467493,-778.084569,0.00014246,2]
[335770143,1724483467626,-778.084569,0.00014246,2]
[335770144,1724483467635,-778.084569,0.00014246,2]
[335770145,1724483467645,-1276.52,0.00014246,2]
[335770146,1724483467655,-3592.176796,0.00014246,2]
[335770147,1724483467664,-3592.176796,0.00014246,2]
[335770148,1724483467673,-3592.176796,0.00014246,2]
[335770149,1724483467683,-500.0,0.00014246,2]
[335770150,1724483467692,-778.084569,0.00014246,2]
[335770151,1724483467703,-778.084569,0.00014246,2]
[335770152,1724483467711,-778.084569,0.00014246,2]
[335770153,1724483467720,-500.0,0.00014246,2]
[335770154,1724483467729,-3592.176796,0.00014246,2]
[335770155,1724483467739,-3592.176796,0.00014246,2]
[335770156,1724483467748,-3592.176796,0.00014246,2]
[335770157,1724483467757,-500.3351258,0.00014246,2]
[335770158,1724483467766,-500.0,0.00014246,2]
[335770159,1724483467775,-412.325623,0.00014246,2]
[335770160,1724483467784,-598.20045849,0.00014246,2]
[335770161,1724483467793,-412.325623,0.00014246,2]
[335770162,1724483467803,-412.325623,0.00014246,2]
[335770163,1724483467812,-1023.19,0.00014246,2]
[335770164,1724483467821,-500.0,0.00014246,2]
[335770165,1724483467831,-500.0,0.00014246,2]
[335770166,1724483467843,-412.325623,0.00014246,2]
[335770167,1724483467853,-412.325623,0.00014246,2]
[335770168,1724483467866,-412.325623,0.00014246,2]
[335770169,1724483467875,-268.195579,0.00014246,2]
[335770170,1724483467886,-1525.1,0.00014246,2]
[335770171,1724483467895,-500.36419857,0.00014246,2]
[335770172,1724483467905,-268.195579,0.00014246,2]
[335770173,1724483467914,-500.0,0.00014246,2]
[335770174,1724483467926,-197.123887,0.00014246,2]
[335770175,1724483467935,-197.123887,0.00014246,2]
[335770176,1724483467944,-197.123887,0.00014246,2]
[335770177,1724483467953,-500.0,0.00014246,2]
[335770178,1724483467963,-859.2,0.00014246,2]
[335770179,1724483467972,-197.123887,0.00014246,2]
[335770180,1724483467981,-500.0,0.00014246,2]
[335770181,1724483467991,-549.47,0.00014246,2]
[335770182,1724483468000,-197.123887,0.00014246,2]
[335770183,1724483468009,-197.123887,0.00014246,2]
[335770184,1724483468018,-1264.36,0.00014246,2]
[335770185,1724483468027,-666.56,0.00014246,2]
[335770186,1724483468036,-268.195579,0.00014246,2]
[335770187,1724483468045,-268.195579,0.00014246,2]
[335770188,1724483468055,-1800.54,0.00014246,2]
[335770189,1724483468064,-1117.25,0.00014246,2]
[335770190,1724483468074,-514.58222968,0.00014246,2]
[335770191,1724483468083,-178.124472,0.00014246,2]